[Event "Late-Titled-Tuesday-Blitz-February-20-2024"]
[Site "Chess.com"]
[Date "2024.02.20"]
[Round "6"]
[White "LiemLe"]
[Black "Zkid"]
[Result "1-0"]
[WhiteElo "3044"]
[BlackElo "2933"]
[TimeControl "180+1"]
[EndTime "15:07:33 PST"]
[Termination "LiemLe won by resignation"]

1. Nf3 {[%clk 0:03:00.9]} 1... Nf6 {[%clk 0:02:59.8]} 2. c4 {[%clk 0:03:01]}
2... c5 {[%clk 0:03:00.1]} 3. Nc3 {[%clk 0:03:01.1]} 3... Nc6 {[%clk 0:02:59.8]}
4. e3 {[%clk 0:03:01.2]} 4... e6 {[%clk 0:02:59.2]} 5. d4 {[%clk 0:03:00.7]}
5... d5 {[%clk 0:02:59.9]} 6. a3 {[%clk 0:03:00.4]} 6... cxd4 {[%clk 0:02:55.3]}
7. exd4 {[%clk 0:03:00.4]} 7... Be7 {[%clk 0:02:55.6]} 8. c5 {[%clk 0:02:44.3]}
8... O-O {[%clk 0:02:50.9]} 9. b4 {[%clk 0:02:32]} 9... Ne4 {[%clk 0:02:50]} 10.
Bb2 {[%clk 0:02:31.3]} 10... f5 {[%clk 0:02:49.6]} 11. Bb5 {[%clk 0:02:15.9]}
11... Bf6 {[%clk 0:02:41.7]} 12. O-O {[%clk 0:02:15.4]} 12... a5 {[%clk
0:02:39.4]} 13. bxa5 {[%clk 0:01:01.8]} 13... Qxa5 {[%clk 0:02:30.8]} 14. Qd3
{[%clk 0:01:01.8]} 14... Bd7 {[%clk 0:02:25.7]} 15. Rfb1 {[%clk 0:00:54.9]}
15... Qc7 {[%clk 0:02:17.4]} 16. a4 {[%clk 0:00:51.7]} 16... g5 {[%clk
0:02:06.6]} 17. Ne2 {[%clk 0:00:49.2]} 17... g4 {[%clk 0:02:02.1]} 18. Ne1
{[%clk 0:00:46.4]} 18... Kh8 {[%clk 0:02:01.6]} 19. Bc1 {[%clk 0:00:37.8]} 19...
e5 {[%clk 0:01:42]} 20. Nc2 {[%clk 0:00:36.3]} 20... f4 {[%clk 0:01:22.8]} 21.
dxe5 {[%clk 0:00:35]} 21... Bxe5 {[%clk 0:01:22.6]} 22. Bb2 {[%clk 0:00:32]}
22... f3 {[%clk 0:01:15.7]} 23. Ng3 {[%clk 0:00:30.6]} 23... Bxb2 {[%clk
0:01:12.9]} 24. Rxb2 {[%clk 0:00:29.2]} 24... Qe5 {[%clk 0:01:10.7]} 25. Rab1
{[%clk 0:00:18.5]} 25... Nc3 {[%clk 0:01:05.5]} 26. Re1 {[%clk 0:00:14.9]} 26...
Ne2+ {[%clk 0:01:05.3]} 27. Nxe2 {[%clk 0:00:15.4]} 27... Qxb2 {[%clk
0:01:03.5]} 28. Nc3 {[%clk 0:00:15.9]} 28... Rae8 {[%clk 0:01:01.1]} 29. Rb1
{[%clk 0:00:15.2]} 29... Bf5 {[%clk 0:00:45.6]} 30. Rxb2 {[%clk 0:00:15.6]}
30... Bxd3 {[%clk 0:00:44]} 31. Bxd3 {[%clk 0:00:16.5]} 31... fxg2 {[%clk
0:00:34.8]} 32. Nxd5 {[%clk 0:00:14.6]} 32... Ne5 {[%clk 0:00:30.6]} 33. Bb5
{[%clk 0:00:11.7]} 33... Rc8 {[%clk 0:00:29.8]} 34. Nce3 {[%clk 0:00:10.3]}
34... Rxc5 {[%clk 0:00:28.8]} 35. Kxg2 {[%clk 0:00:10.9]} 35... h5 {[%clk
0:00:26.9]} 36. Be2 {[%clk 0:00:10.3]} 36... Rf7 {[%clk 0:00:25]} 37. Rb6 {[%clk
0:00:09.6]} 37... Nc6 {[%clk 0:00:22]} 38. Nb4 {[%clk 0:00:07.1]} 38... Nd4
{[%clk 0:00:20.8]} 39. Bc4 {[%clk 0:00:07.2]} 39... Rfc7 {[%clk 0:00:19]} 40.
Bd3 {[%clk 0:00:05]} 40... Rg5 {[%clk 0:00:17.1]} 41. Nbd5 {[%clk 0:00:05.2]}
41... Rf7 {[%clk 0:00:17]} 42. Rb4 {[%clk 0:00:03.7]} 42... Nf3 {[%clk 0:00:17]}
43. Nf4 {[%clk 0:00:03.9]} 43... Ne1+ {[%clk 0:00:16.4]} 44. Kg3 {[%clk
0:00:03.8]} 44... h4+ {[%clk 0:00:10.4]} 45. Kxh4 {[%clk 0:00:04]} 45... Rc5
{[%clk 0:00:07.8]} 46. Be2 {[%clk 0:00:03.9]} 46... Nf3+ {[%clk 0:00:06.7]} 47.
Bxf3 {[%clk 0:00:04]} 47... gxf3 {[%clk 0:00:07.6]} 48. Kg3 {[%clk 0:00:04.7]}
48... Kg8 {[%clk 0:00:07]} 49. Kxf3 {[%clk 0:00:05.1]} 49... Rh5 {[%clk
0:00:07]} 50. Kg3 {[%clk 0:00:04.8]} 50... Rh6 {[%clk 0:00:06.7]} 51. Ng4 {[%clk
0:00:05.2]} 51... Ra6 {[%clk 0:00:06.9]} 52. h4 {[%clk 0:00:05.1]} 52... Kg7
{[%clk 0:00:06.8]} 53. Nh3 {[%clk 0:00:05]} 53... Rc6 {[%clk 0:00:05.2]} 54. Ng5
{[%clk 0:00:05.3]} 54... Rc3+ {[%clk 0:00:05.4]} 55. f3 {[%clk 0:00:06]} 55...
Re7 {[%clk 0:00:05.5]} 56. h5 {[%clk 0:00:06.2]} 56... Ra3 {[%clk 0:00:05.3]}
57. Rb6 {[%clk 0:00:05.9]} 57... Rxa4 {[%clk 0:00:04.7]} 58. h6+ {[%clk
0:00:06.8]} 58... Kg8 {[%clk 0:00:04.9]} 59. Rg6+ {[%clk 0:00:07.2]} 59... Kh8
{[%clk 0:00:04.9]} 60. Nf6 {[%clk 0:00:07.8]} 60... Ra8 {[%clk 0:00:04.5]} 61.
Kg4 {[%clk 0:00:07.5]} 61... Rf8 {[%clk 0:00:03.7]} 62. f4 {[%clk 0:00:07.5]}
62... b5 {[%clk 0:00:03.8]} 63. Nd5 {[%clk 0:00:08]} 63... Rd7 {[%clk
0:00:03.7]} 64. Nb4 {[%clk 0:00:07.2]} 64... Rd4 {[%clk 0:00:03.3]} 65. Ne6
{[%clk 0:00:07.3]} 65... Rfxf4+ {[%clk 0:00:02.4]} 66. Nxf4 {[%clk 0:00:08.2]}
66... Rxb4 {[%clk 0:00:02.9]} 67. Rb6 {[%clk 0:00:08.2]} 67... Rc4 {[%clk
0:00:02.9]} 68. Kg5 {[%clk 0:00:08.8]} 68... Rc7 {[%clk 0:00:02.4]} 69. Rxb5
{[%clk 0:00:06.4]} 69... Kh7 {[%clk 0:00:02.4]} 70. Kh5 {[%clk 0:00:06.3]} 70...
Rf7 {[%clk 0:00:02.3]} 71. Ne6 {[%clk 0:00:06.4]} 71... Re7 {[%clk 0:00:01.5]}
72. Ng5+ {[%clk 0:00:06.6]} 1-0

[Event "Late-Titled-Tuesday-Blitz-February-20-2024"]
[Site "Chess.com"]
[Date "2024.02.20"]
[Round "6"]
[White "a-z30"]
[Black "akanga001"]
[Result "1-0"]
[WhiteElo "2395"]
[BlackElo "2032"]
[TimeControl "180+1"]
[EndTime "15:07:36 PST"]
[Termination "a-z30 won by checkmate"]

1. d3 {[%clk 0:03:00.9]} 1... d5 {[%clk 0:02:57]} 2. Nf3 {[%clk 0:03:01.8]} 2...
Nf6 {[%clk 0:02:55.9]} 3. g3 {[%clk 0:03:02.7]} 3... b6 {[%clk 0:02:54.2]} 4.
Bg2 {[%clk 0:03:03.4]} 4... Bb7 {[%clk 0:02:54.5]} 5. O-O {[%clk 0:03:04.3]}
5... c5 {[%clk 0:02:52.2]} 6. e4 {[%clk 0:02:56.4]} 6... dxe4 {[%clk 0:02:51.5]}
7. Ng5 {[%clk 0:02:56.1]} 7... g6 {[%clk 0:02:49.7]} 8. Nc3 {[%clk 0:02:54.5]}
8... Bg7 {[%clk 0:02:46.7]} 9. Ngxe4 {[%clk 0:02:49.9]} 9... Nxe4 {[%clk
0:02:45.2]} 10. Nxe4 {[%clk 0:02:50.2]} 10... Nc6 {[%clk 0:02:42]} 11. c3 {[%clk
0:02:29.1]} 11... O-O {[%clk 0:02:40.3]} 12. Re1 {[%clk 0:02:27.7]} 12... e5
{[%clk 0:02:36.8]} 13. Qa4 {[%clk 0:01:52.9]} 13... Rc8 {[%clk 0:02:20.3]} 14.
Be3 {[%clk 0:01:19]} 14... Qc7 {[%clk 0:02:08]} 15. Rad1 {[%clk 0:01:15.4]}
15... Rfd8 {[%clk 0:02:03.5]} 16. Bg5 {[%clk 0:01:14.7]} 16... Rf8 {[%clk
0:01:57.5]} 17. Nf6+ {[%clk 0:01:10.2]} 17... Kh8 {[%clk 0:01:54.7]} 18. Qh4
{[%clk 0:01:09.1]} 18... h5 {[%clk 0:01:50.1]} 19. Nxh5 {[%clk 0:00:53]} 19...
gxh5 {[%clk 0:01:49.1]} 20. Qxh5+ {[%clk 0:00:53.9]} 20... Kg8 {[%clk
0:01:48.6]} 21. Re4 {[%clk 0:00:52.6]} 21... f5 {[%clk 0:01:39.3]} 22. Rh4
{[%clk 0:00:50.5]} 22... Rfd8 {[%clk 0:01:20.8]} 23. Qh7+ {[%clk 0:00:44.9]}
23... Kf8 {[%clk 0:01:20.3]} 24. Bxd8 {[%clk 0:00:27.7]} 24... Rxd8 {[%clk
0:01:18.1]} 25. Qxf5+ {[%clk 0:00:27]} 25... Qf7 {[%clk 0:01:17.5]} 26. Qg5
{[%clk 0:00:19.5]} 26... Bf6 {[%clk 0:01:01.8]} 27. Qh6+ {[%clk 0:00:19.4]}
27... Qg7 {[%clk 0:01:01.4]} 28. Qxg7+ {[%clk 0:00:18.1]} 28... Kxg7 {[%clk
0:01:01.1]} 29. Rg4+ {[%clk 0:00:17.8]} 29... Kf7 {[%clk 0:01:00.1]} 30. h4
{[%clk 0:00:17.9]} 30... Na5 {[%clk 0:00:58.4]} 31. Bxb7 {[%clk 0:00:18]} 31...
Nxb7 {[%clk 0:00:58.2]} 32. Re4 {[%clk 0:00:18]} 32... Nd6 {[%clk 0:00:56]} 33.
Ree1 {[%clk 0:00:18.9]} 33... Rg8 {[%clk 0:00:52]} 34. Kh2 {[%clk 0:00:17.9]}
34... Nb5 {[%clk 0:00:48.1]} 35. Kh3 {[%clk 0:00:17.3]} 35... a5 {[%clk
0:00:45.1]} 36. Re4 {[%clk 0:00:13.6]} 36... Nd6 {[%clk 0:00:43.5]} 37. Re2
{[%clk 0:00:12.6]} 37... Nb5 {[%clk 0:00:42.5]} 38. Rf1 {[%clk 0:00:10]} 38...
a4 {[%clk 0:00:41.6]} 39. f4 {[%clk 0:00:09.2]} 39... exf4 {[%clk 0:00:39.4]}
40. Rxf4 {[%clk 0:00:09.3]} 40... a3 {[%clk 0:00:33.6]} 41. Ref2 {[%clk
0:00:08.6]} 41... Rg6 {[%clk 0:00:33]} 42. c4 {[%clk 0:00:06]} 42... axb2 {[%clk
0:00:30.2]} 43. Rxb2 {[%clk 0:00:06.9]} 43... Nd4 {[%clk 0:00:26.3]} 44. Rxb6
{[%clk 0:00:05.8]} 44... Kg7 {[%clk 0:00:22.4]} 45. Rbxf6 {[%clk 0:00:04.7]}
45... Rxf6 {[%clk 0:00:22]} 46. Rxf6 {[%clk 0:00:05.6]} 46... Kxf6 {[%clk
0:00:22.9]} 47. a4 {[%clk 0:00:05.3]} 47... Nb3 {[%clk 0:00:22]} 48. g4 {[%clk
0:00:05.1]} 48... Na5 {[%clk 0:00:20.5]} 49. Kg3 {[%clk 0:00:04.5]} 49... Ke5
{[%clk 0:00:20.6]} 50. h5 {[%clk 0:00:03.8]} 50... Kf6 {[%clk 0:00:20.3]} 51.
Kh4 {[%clk 0:00:04.1]} 51... Nc6 {[%clk 0:00:18.9]} 52. g5+ {[%clk 0:00:05]}
52... Kg7 {[%clk 0:00:19]} 53. Kg4 {[%clk 0:00:04.8]} 53... Ne5+ {[%clk
0:00:19.5]} 54. Kf5 {[%clk 0:00:04.7]} 54... Nxd3 {[%clk 0:00:19.1]} 55. a5
{[%clk 0:00:04.9]} 55... Nb4 {[%clk 0:00:18.6]} 56. h6+ {[%clk 0:00:04.6]} 56...
Kh7 {[%clk 0:00:18.1]} 57. Ke5 {[%clk 0:00:05.1]} 57... Na6 {[%clk 0:00:18.1]}
58. Kd6 {[%clk 0:00:04.9]} 58... Kg6 {[%clk 0:00:18.4]} 59. Kc6 {[%clk
0:00:05.5]} 59... Kh7 {[%clk 0:00:15.4]} 60. Kb6 {[%clk 0:00:05.6]} 60... Nb4
{[%clk 0:00:14.8]} 61. Kxc5 {[%clk 0:00:06.5]} 61... Na6+ {[%clk 0:00:14.5]} 62.
Kb5 {[%clk 0:00:06.5]} 62... Nb8 {[%clk 0:00:15.4]} 63. c5 {[%clk 0:00:06.2]}
63... Nd7 {[%clk 0:00:15.5]} 64. c6 {[%clk 0:00:07.1]} 64... Nb8 {[%clk
0:00:15.2]} 65. c7 {[%clk 0:00:06.5]} 65... Nd7 {[%clk 0:00:15.5]} 66. c8=Q
{[%clk 0:00:06.5]} 66... Nf8 {[%clk 0:00:16.4]} 67. Qf5+ {[%clk 0:00:05.8]}
67... Ng6 {[%clk 0:00:17.3]} 68. a6 {[%clk 0:00:03.8]} 68... Kh8 {[%clk
0:00:18.2]} 69. Qf6+ {[%clk 0:00:03.9]} 69... Kh7 {[%clk 0:00:16.4]} 70. Qg7#
{[%clk 0:00:04.8]} 1-0

[Event "Late-Titled-Tuesday-Blitz-February-20-2024"]
[Site "Chess.com"]
[Date "2024.02.20"]
[Round "6"]
[White "pavet"]
[Black "Njal28"]
[Result "0-1"]
[WhiteElo "2746"]
[BlackElo "2995"]
[TimeControl "180+1"]
[EndTime "15:07:40 PST"]
[Termination "Njal28 won on time"]

1. e4 {[%clk 0:03:00.9]} 1... c5 {[%clk 0:02:59.2]} 2. Nf3 {[%clk 0:03:00.8]}
2... d6 {[%clk 0:02:59.9]} 3. d4 {[%clk 0:03:01.1]} 3... cxd4 {[%clk 0:03:00.8]}
4. Nxd4 {[%clk 0:03:01.7]} 4... Nf6 {[%clk 0:03:01.4]} 5. Nc3 {[%clk 0:03:02.4]}
5... a6 {[%clk 0:03:02]} 6. Bg5 {[%clk 0:03:00.4]} 6... e6 {[%clk 0:03:00.6]} 7.
Qe2 {[%clk 0:03:00.9]} 7... Be7 {[%clk 0:02:57.3]} 8. O-O-O {[%clk 0:03:01]}
8... Nxe4 {[%clk 0:02:49.2]} 9. Bxe7 {[%clk 0:02:55.6]} 9... Nxc3 {[%clk
0:02:47.7]} 10. Bxd8 {[%clk 0:02:55]} 10... Nxe2+ {[%clk 0:02:47.8]} 11. Nxe2
{[%clk 0:02:55.9]} 11... Kxd8 {[%clk 0:02:48.1]} 12. Rxd6+ {[%clk 0:02:56.5]}
12... Ke7 {[%clk 0:02:48.5]} 13. Rd2 {[%clk 0:02:56.8]} 13... Bd7 {[%clk
0:02:49]} 14. Nd4 {[%clk 0:02:52.1]} 14... Nc6 {[%clk 0:02:47.1]} 15. Nxc6+
{[%clk 0:02:41.4]} 15... Bxc6 {[%clk 0:02:48]} 16. f3 {[%clk 0:02:41.9]} 16...
h5 {[%clk 0:02:29.1]} 17. Bd3 {[%clk 0:02:33.8]} 17... h4 {[%clk 0:02:28.5]} 18.
h3 {[%clk 0:02:34]} 18... Rad8 {[%clk 0:02:25.5]} 19. Re1 {[%clk 0:02:34]} 19...
Kf6 {[%clk 0:02:20.1]} 20. Be4 {[%clk 0:02:34.1]} 20... Bxe4 {[%clk 0:02:10.6]}
21. Rxe4 {[%clk 0:02:34]} 21... g5 {[%clk 0:02:10.6]} 22. Rxd8 {[%clk
0:02:27.8]} 22... Rxd8 {[%clk 0:02:11.5]} 23. c4 {[%clk 0:02:27.7]} 23... e5
{[%clk 0:02:09.5]} 24. Kc2 {[%clk 0:02:23.5]} 24... Ke6 {[%clk 0:02:09.9]} 25.
Re1 {[%clk 0:02:19]} 25... Rd4 {[%clk 0:02:06.9]} 26. Kc3 {[%clk 0:02:17.1]}
26... Kf5 {[%clk 0:02:06.3]} 27. b4 {[%clk 0:02:11.8]} 27... Kf4 {[%clk
0:02:04.7]} 28. c5 {[%clk 0:02:02.6]} 28... f5 {[%clk 0:02:02.8]} 29. a4 {[%clk
0:01:58.6]} 29... Rd5 {[%clk 0:01:38.7]} 30. Kc4 {[%clk 0:01:57.6]} 30... Rd2
{[%clk 0:01:39.2]} 31. b5 {[%clk 0:01:54]} 31... axb5+ {[%clk 0:01:40.1]} 32.
axb5 {[%clk 0:01:54.8]} 32... Rxg2 {[%clk 0:01:40.1]} 33. Rc1 {[%clk 0:01:55.4]}
33... Ra2 {[%clk 0:01:30]} 34. c6 {[%clk 0:01:54.9]} 34... bxc6 {[%clk
0:01:30.4]} 35. bxc6 {[%clk 0:01:55.8]} 35... Kxf3 {[%clk 0:01:26.6]} 36. c7
{[%clk 0:01:52.9]} 36... Ra8 {[%clk 0:01:26.4]} 37. Kd5 {[%clk 0:01:53.5]} 37...
Rc8 {[%clk 0:01:14.7]} 38. Kxe5 {[%clk 0:01:53.3]} 38... f4 {[%clk 0:01:15.4]}
39. Kf5 {[%clk 0:01:51.3]} 39... Kg3 {[%clk 0:01:14.5]} 40. Kxg5 {[%clk
0:01:18]} 40... f3 {[%clk 0:01:14.1]} 41. Rg1+ {[%clk 0:00:46.9]} 41... Kh2
{[%clk 0:01:06.8]} 42. Rc1 {[%clk 0:00:42.3]} 42... f2 {[%clk 0:01:03.8]} 43.
Kxh4 {[%clk 0:00:41.9]} 43... Rxc7 {[%clk 0:00:50.7]} 44. Rxc7 {[%clk
0:00:41.2]} 44... f1=Q {[%clk 0:00:51.1]} 45. Rg7 {[%clk 0:00:38.8]} 45... Qf6+
{[%clk 0:00:47.8]} 46. Rg5 {[%clk 0:00:37.1]} 46... Qh6+ {[%clk 0:00:47.3]} 47.
Kg4 {[%clk 0:00:37.5]} 47... Qxh3+ {[%clk 0:00:44.7]} 48. Kf4 {[%clk 0:00:37.6]}
48... Qh6 {[%clk 0:00:42.9]} 49. Kf5 {[%clk 0:00:37.5]} 49... Kh3 {[%clk
0:00:40.9]} 50. Rg6 {[%clk 0:00:38]} 50... Qh5+ {[%clk 0:00:39.1]} 51. Kf6
{[%clk 0:00:38.6]} 51... Kh4 {[%clk 0:00:37.9]} 52. Kg7 {[%clk 0:00:38]} 52...
Qe5+ {[%clk 0:00:37.4]} 53. Kf7 {[%clk 0:00:26.8]} 53... Kh5 {[%clk 0:00:32.4]}
54. Re6 {[%clk 0:00:26.9]} 54... Qd5 {[%clk 0:00:29.4]} 55. Kf6 {[%clk
0:00:25.4]} 55... Qg5+ {[%clk 0:00:22.9]} 56. Kf7 {[%clk 0:00:24.9]} 56... Qf5+
{[%clk 0:00:20.6]} 57. Ke7 {[%clk 0:00:24.1]} 57... Kg5 {[%clk 0:00:19]} 58. Kd6
{[%clk 0:00:24.3]} 58... Qd3+ {[%clk 0:00:19.1]} 59. Ke7 {[%clk 0:00:22.8]}
59... Qd4 {[%clk 0:00:17.2]} 60. Kf7 {[%clk 0:00:16.4]} 60... Kf5 {[%clk
0:00:15.3]} 61. Rh6 {[%clk 0:00:14.6]} 61... Qd7+ {[%clk 0:00:10.7]} 62. Kg8
{[%clk 0:00:14.1]} 62... Kg5 {[%clk 0:00:10.2]} 63. Rh7 {[%clk 0:00:12.8]} 63...
Qe8+ {[%clk 0:00:10.5]} 64. Kg7 {[%clk 0:00:13]} 64... Qe5+ {[%clk 0:00:11.1]}
65. Kf7 {[%clk 0:00:11.6]} 65... Qf5+ {[%clk 0:00:11.2]} 66. Kg7 {[%clk
0:00:10]} 66... Qd7+ {[%clk 0:00:10.8]} 67. Kg8 {[%clk 0:00:08.7]} 67... Qe8+
{[%clk 0:00:09.5]} 68. Kg7 {[%clk 0:00:08.7]} 68... Qc8 {[%clk 0:00:04.8]} 69.
Kf7 {[%clk 0:00:07.3]} 69... Qf5+ {[%clk 0:00:03.1]} 70. Kg7 {[%clk 0:00:06.4]}
70... Qe4 {[%clk 0:00:03.4]} 71. Kg8 {[%clk 0:00:03.4]} 71... Qe6+ {[%clk
0:00:04]} 72. Kg7 {[%clk 0:00:03.2]} 72... Qe8 {[%clk 0:00:04.5]} 0-1

[Event "Late-Titled-Tuesday-Blitz-February-20-2024"]
[Site "Chess.com"]
[Date "2024.02.20"]
[Round "6"]
[White "Ready4abattle"]
[Black "dolynachess"]
[Result "0-1"]
[WhiteElo "2277"]
[BlackElo "2451"]
[TimeControl "180+1"]
[EndTime "15:07:41 PST"]
[Termination "dolynachess won by resignation"]

1. e4 {[%clk 0:03:00.9]} 1... c5 {[%clk 0:02:57.2]} 2. Nf3 {[%clk 0:03:00.8]}
2... d6 {[%clk 0:02:57.7]} 3. d4 {[%clk 0:03:01]} 3... cxd4 {[%clk 0:02:58.6]}
4. Nxd4 {[%clk 0:03:01.5]} 4... Nf6 {[%clk 0:02:59.4]} 5. Nc3 {[%clk 0:03:02]}
5... g6 {[%clk 0:03:00]} 6. Be3 {[%clk 0:03:01.5]} 6... Nc6 {[%clk 0:03:00.5]}
7. f3 {[%clk 0:02:58.1]} 7... h5 {[%clk 0:03:00.1]} 8. Qd2 {[%clk 0:02:57.5]}
8... Nxd4 {[%clk 0:03:00.1]} 9. Qxd4 {[%clk 0:02:52.9]} 9... Bg7 {[%clk
0:03:00]} 10. Qd2 {[%clk 0:02:51.2]} 10... Be6 {[%clk 0:02:57.8]} 11. O-O-O
{[%clk 0:02:49]} 11... O-O {[%clk 0:02:56.5]} 12. Kb1 {[%clk 0:02:47.7]} 12...
Qc7 {[%clk 0:02:48.9]} 13. Nb5 {[%clk 0:02:40.7]} 13... Qb8 {[%clk 0:02:48.6]}
14. Nd4 {[%clk 0:02:39.6]} 14... Bd7 {[%clk 0:02:42.7]} 15. g3 {[%clk
0:02:30.3]} 15... Rc8 {[%clk 0:02:35.7]} 16. h3 {[%clk 0:02:23.7]} 16... b5
{[%clk 0:02:35.3]} 17. g4 {[%clk 0:02:22.3]} 17... a5 {[%clk 0:02:33.4]} 18. Bh6
{[%clk 0:02:04.3]} 18... Bh8 {[%clk 0:02:26.7]} 19. gxh5 {[%clk 0:01:52]} 19...
Nxh5 {[%clk 0:02:24.6]} 20. Rg1 {[%clk 0:01:47.5]} 20... Rc5 {[%clk 0:02:04]}
21. Nf5 {[%clk 0:01:17.8]} 21... Bxf5 {[%clk 0:01:20.5]} 22. exf5 {[%clk
0:01:18.7]} 22... Rxf5 {[%clk 0:01:20.4]} 23. Bd3 {[%clk 0:01:17.5]} 23... Qc8
{[%clk 0:00:58.1]} 24. Bxf5 {[%clk 0:01:15.6]} 24... Qxf5 {[%clk 0:00:57.8]} 25.
Qd5 {[%clk 0:01:12.7]} 25... Qxd5 {[%clk 0:00:57.3]} 26. Rxd5 {[%clk 0:01:12.4]}
26... Kh7 {[%clk 0:00:54.9]} 27. Be3 {[%clk 0:01:11.2]} 27... b4 {[%clk
0:00:47.3]} 28. Re1 {[%clk 0:01:09.7]} 28... Bf6 {[%clk 0:00:35.8]} 29. Bg5
{[%clk 0:01:00.4]} 29... e6 {[%clk 0:00:30.2]} 30. Rb5 {[%clk 0:01:00.3]} 30...
Bxg5 {[%clk 0:00:27.9]} 31. Rxg5 {[%clk 0:01:00.4]} 31... d5 {[%clk 0:00:27.2]}
32. c3 {[%clk 0:00:43.9]} 32... bxc3 {[%clk 0:00:25.1]} 33. bxc3 {[%clk
0:00:44.8]} 33... Rc8 {[%clk 0:00:25.1]} 34. Kb2 {[%clk 0:00:44.5]} 34... Rc4
{[%clk 0:00:24.7]} 35. Rg4 {[%clk 0:00:42.8]} 35... Nf4 {[%clk 0:00:19.9]} 36.
Kb3 {[%clk 0:00:33.6]} 36... f5 {[%clk 0:00:18.3]} 37. Rgg1 {[%clk 0:00:26.5]}
37... a4+ {[%clk 0:00:17.7]} 38. Kc2 {[%clk 0:00:26.4]} 38... d4 {[%clk
0:00:16.2]} 39. Rb1 {[%clk 0:00:23.1]} 39... Rxc3+ {[%clk 0:00:16.1]} 40. Kd2
{[%clk 0:00:23.7]} 40... Rd3+ {[%clk 0:00:14.8]} 41. Kc2 {[%clk 0:00:23.4]}
41... Rc3+ {[%clk 0:00:11.6]} 42. Kd2 {[%clk 0:00:23.5]} 42... Rxf3 {[%clk
0:00:12.5]} 43. Rb4 {[%clk 0:00:22.2]} 43... Rf2+ {[%clk 0:00:11.8]} 44. Kc1
{[%clk 0:00:19.5]} 44... Rxa2 {[%clk 0:00:09.9]} 45. Kb1 {[%clk 0:00:18.5]}
45... Rd2 {[%clk 0:00:09.8]} 46. Rxa4 {[%clk 0:00:17.9]} 46... Kh6 {[%clk
0:00:08.4]} 47. Rf1 {[%clk 0:00:16.4]} 47... e5 {[%clk 0:00:07.8]} 48. Kc1
{[%clk 0:00:15.2]} 48... Rd3 {[%clk 0:00:06.3]} 49. Ra8 {[%clk 0:00:15.5]} 49...
Rxh3 {[%clk 0:00:05.4]} 50. Rh8+ {[%clk 0:00:15.4]} 50... Kg5 {[%clk 0:00:04.5]}
51. Rg1+ {[%clk 0:00:13.4]} 51... Kf6 {[%clk 0:00:04.2]} 52. Ra8 {[%clk
0:00:13.5]} 52... Rh2 {[%clk 0:00:03.8]} 53. Ra6+ {[%clk 0:00:14.4]} 53... Kf7
{[%clk 0:00:03.8]} 54. Rf1 {[%clk 0:00:14.1]} 54... Ne2+ {[%clk 0:00:03.5]} 55.
Kb1 {[%clk 0:00:13.2]} 55... Nc3+ {[%clk 0:00:04.4]} 56. Kc1 {[%clk 0:00:14]}
56... Ne4 {[%clk 0:00:04.8]} 57. Kd1 {[%clk 0:00:14.3]} 57... Nf6 {[%clk
0:00:04]} 58. Ra7+ {[%clk 0:00:14.5]} 58... Ke6 {[%clk 0:00:04.8]} 59. Ra6+
{[%clk 0:00:15.4]} 59... Kf7 {[%clk 0:00:04.7]} 60. Ra7+ {[%clk 0:00:16]} 60...
Ke6 {[%clk 0:00:05.6]} 61. Ra6+ {[%clk 0:00:16.9]} 61... Ke7 {[%clk 0:00:06.3]}
62. Ra7+ {[%clk 0:00:17.4]} 62... Nd7 {[%clk 0:00:07.2]} 63. Ra6 {[%clk
0:00:18.3]} 63... Nc5 {[%clk 0:00:07]} 64. Rxg6 {[%clk 0:00:18]} 64... Ne4
{[%clk 0:00:06.5]} 65. Rxf5 {[%clk 0:00:17.2]} 65... Nc3+ {[%clk 0:00:07.4]} 66.
Kc1 {[%clk 0:00:16.6]} 66... Re2 {[%clk 0:00:07]} 67. Ra6 {[%clk 0:00:15.5]}
67... Na2+ {[%clk 0:00:07]} 68. Rxa2 {[%clk 0:00:14.7]} 68... Rxa2 {[%clk
0:00:06.7]} 69. Rxe5+ {[%clk 0:00:15.4]} 69... Kd6 {[%clk 0:00:07.1]} 70. Re8
{[%clk 0:00:15.8]} 70... Kd5 {[%clk 0:00:07.4]} 71. Rd8+ {[%clk 0:00:15.9]}
71... Kc4 {[%clk 0:00:07.7]} 72. Kd1 {[%clk 0:00:15]} 72... Rh2 {[%clk
0:00:07.4]} 73. Re8 {[%clk 0:00:14.6]} 73... Kc3 {[%clk 0:00:06.6]} 74. Ke1
{[%clk 0:00:14.4]} 74... Rh1+ {[%clk 0:00:04.6]} 75. Ke2 {[%clk 0:00:14.6]}
75... d3+ {[%clk 0:00:04.7]} 76. Ke3 {[%clk 0:00:14.8]} 76... Re1+ {[%clk
0:00:03.9]} 0-1